Cogmind - Beta 16.1 @@@ ROGUE MODE // 2026.02.26 @ 00:27:45 Player: TheSkyeDoctor Result: Destroyed by 9Y-LJ2(R) with Subdweller Laser Performance ------------- Evolutions (0) 0 Regions Visited (2) 400 Robots Destroyed (2) 10 Value Destroyed (13) 13 Prototype IDs (0) 0 Alien Tech Used (0) 0 Bonus (0) 0 TOTAL SCORE: 423 Bonus ------- None Cogmind --------- Core Integrity 0/250 Matter 294/300 Energy 99/100 System Corruption 0% Temperature Cool (6) Movement Core (100) Ox1 Location -10/Subcaves Parts ------- > --- POWER (1) -------- (None) > --- PROPULSION (2) --- (None) > --- UTILITY (2) ------ Small Storage Unit Weapon Shielding > --- WEAPON (2) ------- (None) > --- INVENTORY (8) ---- Improved Heat Sink High-capacity Matter Pod (200) Visual Processing Unit Seismic Detector Peak State ------------ > --- POWER ------------ Ion Engine > --- PROPULSION ------- Light Treads Light Treads > --- UTILITY ---------- Small Storage Unit Seismic Detector > --- WEAPON ----------- Small Laser Assault Rifle > --- INVENTORY -------- Light Ion Engine Wheel Compact Wheel Improved Heat Sink High-capacity Matter Pod Visual Processing Unit Weapon Shielding [Rating: 8] Favorites ----------- Power Ion Engine Engine Ion Engine Propulsion Light Treads Treads Light Treads Wheel Wheel Utility Small Storage Unit Device Seismic Detector Storage Small Storage Unit Protection Weapon Shielding Weapon Small Laser Energy Gun Small Laser Ballistic Gun Assault Rifle Build | -11 -10 -10 ------- Run | Yrd Mat Sub Slots Evolved . | . . . Power . | . . . Propulsion . | . . . Utility . | . . . Weapon . | . . . Parts Attached 11 | 7 . 4 Power 2 | 1 . 1 Engine 2 | 1 . 1 Core . | . . . Reactor . | . . . Propulsion 4 | 2 . 2 Treads 2 | 2 . . Leg . | . . . Wheel 2 | . . 2 Hover . | . . . Flight . | . . . Utility 3 | 2 . 1 Device 1 | 1 . . Storage 1 | 1 . . Processor . | . . . Hackware . | . . . Protection 1 | . . 1 Artifact . | . . . Weapon 2 | 2 . . Energy Gun 1 | 1 . . Energy Cannon . | . . . Ballistic Gun 1 | 1 . . Ballistic Cannon . | . . . Launcher . | . . . Special Weapon . | . . . Impact Weapon . | . . . Slashing Weapon . | . . . Piercing Weapon . | . . . Special Melee Weapon . | . . . Unidentified Prototypes . | . . . Parts Lost 8 | . . 8 Power 2 | . . 2 Propulsion 4 | . . 4 Utility . | . . . Weapon 2 | . . 2 Highest Loss Streak 6 | . . 6 To Critical Strikes . | . . . Average Backups 4 | 1 5 5 Power . | . 1 . Propulsion 1 | 1 2 . Utility 2 | . 2 4 Weapon . | . . . Tool/Special . | . . . Unused Backups 4 | . . 4 Power . | . . . Propulsion . | . . . Utility 4 | . . 4 Weapon . | . . . Tool/Special . | . . . Average Slot Usage (%) 70 | . 100 56 Engine 8 | . 14 6 Treads 15 | . 28 9 Wheel 4 | . . 6 Device 10 | . 14 9 Storage 14 | . 14 14 Protection 3 | . . 4 Energy Gun 7 | . 14 3 Ballistic Gun 6 | . 14 3 Peak Build Rating 8 | 7 7 8 Average Rating 4 | 4 7 4 On Entrance 4 | . 7 7 Avg Prop Armor Cover (%) 20 | . . 20 Naked Turns . | . . . Heaviest Build 14 | 14 14 14 Greatest Support 40 | 40 40 40 Greatest Overweight (x) 3 | . . 3 Average Overweight (x) . | . . . Largest Inventory Capacity 8 | 8 8 8 Average Capacity 7 | 7 8 8 Most Carried 7 | 3 7 7 Average Carried 4 | 1 5 5 Final Capacity 8 | 8 8 8 Final Carried 7 | 3 7 4 Class Distribution -------------------- 100% | Mutant Dominant Class ---------------- Mutant | -10/Materials Mutant | -10/Subcaves Resources | -11 -10 -10 ----------- Run | Yrd Mat Sub Matter Collected 485 | 279 168 38 Remotely . | . . . Salvage Created 87 | 87 . . Parts 3 | 3 . . Haulers Intercepted . | . . . Recyclers Shooed . | . . . Parts Field Recycled . | . . . Retrieved Matter . | . . . Parts Self-Destructed 5 | . . 5 Prevented . | . . . Parts Restored . | . . . Kills | -11 -10 -10 ------- Run | Yrd Mat Sub Combat Hostiles Destroyed . | . . . Classes Destroyed 2 | 2 . . Tunneler 1 | 1 . . Recycler 1 | 1 . . Best Kill Streak 2 | 2 . . Combat Bots Only . | . . . Max Kills in Single Turn 1 | 1 . . Gunslinging . | . . . Exploded . | . . . Melee . | . . . Uniques/NPCs Destroyed . | . . . Combat | -11 -10 -10 -------- Run | Yrd Mat Sub Hostile Shots Fired 84 | . . 84 Missed 27 | . . 27 Hits 57 | . . 57 Projectile 57 | . . 57 Critical Strikes 2 | . . 2 Damage Taken 1033 | . . 1033 Core 257 | . . 257 Absorbed by Shields . | . . . Core Remaining (%) 100 | 100 . . Volleys Fired 11 | 3 . 8 Largest 2 | 2 . 2 Hottest 60 | 60 . 60 Shots Fired 17 | 6 . 11 Gun 17 | 6 . 11 Cannon . | . . . Launcher . | . . . Special . | . . . Kinetic 6 | 3 . 3 Thermal 11 | 3 . 8 Explosive . | . . . Electromagnetic . | . . . Robot Hit Streak 5 | 5 . 2 Robot Miss Streak 1 | . . 1 Penetration Max . | . . . Secondary Targets . | . . . Shots Hit Robots 12 | 5 . 7 Core Hits 5 | 3 . 2 Critical Kills . | . . . Critical Parts Destroyed . | . . . Critical Strikes . | . . . Melee Attacks . | . . . Impact . | . . . Slashing . | . . . Piercing . | . . . Sneak Attacks . | . . . Combat Hostiles . | . . . Follow-up Attacks . | . . . Damage Inflicted 168 | 56 . 112 Guns 136 | 56 . 80 Cannons . | . . . Explosions . | . . . Melee . | . . . Ramming 32 | . . 32 Kinetic 47 | 22 . 25 Thermal 89 | 34 . 55 Explosive . | . . . Electromagnetic . | . . . Impact . | . . . Slashing . | . . . Piercing . | . . . Highest Corruption . | . . . Average Corruption . | . . . Corruption Purged . | . . . Corruption Blocked . | . . . Overload Shots . | . . . Overflow Damage . | . . . Projectiles . | . . . Explosions . | . . . Melee . | . . . Knockbacks 2 | . . 2 Impact 2 | . . 2 Kinetic . | . . . Secondary . | . . . Self-Inflicted Damage 12 | . . 12 Shots . | . . . Rammed 11 | . . 11 Targets Rammed 11 | . . 11 Kicked . | . . . Crushed . | . . . Highest Temperature . | . . . Average Temperature . | . . . Received Heat Transfer 327 | . . 327 Siege Activations . | . . . Martial Activations . | . . . Shielding Activations . | . . . Robots Disrupted . | . . . Combat Hostiles . | . . . Robots Corrupted . | . . . Combat Hostiles . | . . . Parts Fried . | . . . Impact Corruptions . | . . . Robots Melted . | . . . Combat Hostiles . | . . . Parts Melted . | . . . Heat Transferred 200 | 75 . 125 Parts Sabotaged . | . . . Parts Stolen . | . . . Parts Stripped . | . . . Power Chain Reactions . | . . . Alert | -11 -10 -10 ------- Run | Yrd Mat Sub Maximum Alert Level . | . . . Low Security (%) 100 | 100 100 . Level 1 . | . . . Level 2 . | . . . Level 3 . | . . . Level 4 . | . . . Level 5 . | . . . High Security . | . . . Max Security . | . . . Peak Influence 10 | 10 . . Initial . | . . . Average . | 1 . . Influence Increases 40 | 10 . 30 Destroy 0b10 Robot/NC 10 | 10 . . Lose Combat Pursuer 30 | . . 30 Influence Decreases 40 | 10 . 30 Time Decay 30 | 10 . 20 Lost Part 10 | . . 10 Squads Dispatched 1 | . 1 . Investigation . | . . . Extermination . | . . . Reinforcement 1 | . 1 . Assault . | . . . Garrison . | . . . Intercept . | . . . Searches Triggered . | . . . Construction Impeded . | . . . Haulers Reinforced . | . . . Active Scanning Responses . | . . . Cargo Convoy Interrupts . | . . . Stealth | -11 -10 -10 --------- Run | Yrd Mat Sub Distress Signals 1 | . 1 . Communications Jammed . | . . . Distress Signals . | . . . Times Spotted 9 | . 1 8 Peak Tracking Total 4 | . 1 4 Tactical Retreats 1 | . . 1 Traps | -11 -10 -10 ------- Run | Yrd Mat Sub Traps Triggered . | . . . Indirectly . | . . . Trap Hack Attempts . | . . . Triggered . | . . . Disarmed . | . . . Reprogrammed . | . . . Reused . | . . . Traps Extracted . | . . . Installed . | . . . Triggered . | . . . Machines | -11 -10 -10 ---------- Run | Yrd Mat Sub Machines Disabled . | . . . Max in Single Turn . | . . . Machines Repaired . | . . . Machines Dismantled . | . . . Machines Sabotaged . | . . . Overloaded Fab Kills . | . . . Hacking | -11 -10 -10 --------- Run | Yrd Mat Sub Machines Accessed . | . . . Terminals . | . . . Fabricators . | . . . Repair Stations . | . . . Recycling Units . | . . . Scanalyzers . | . . . Garrison Access . | . . . Total Hacks . | . . . Successful . | . . . Failed . | . . . Catastrophic . | . . . Database Lockouts . | . . . Manual . | . . . Terminals . | . . . Fabricators . | . . . Repair Stations . | . . . Recycling Units . | . . . Scanalyzers . | . . . Garrison Access . | . . . Terminal Hacks . | . . . Fabricator Hacks . | . . . Repair Station Hacks . | . . . Recycling Unit Hacks . | . . . Scanalyzer . | . . . Garrison Access Hacks . | . . . Unauthorized Hacks . | . . . Terminals . | . . . Fabricators . | . . . Repair Stations . | . . . Recycling Units . | . . . Scanalyzers . | . . . Garrison Access . | . . . Data Cores Recovered . | . . . Used . | . . . Hacking Detections . | . . . Full Trace Events . | . . . Feedback Events . | . . . Feedback Blocked . | . . . Robot Schematics Acquired . | . . . Robots Built . | . . . Authchips . | . . . Time . | . . . Total Robot Build Rating . | . . . Part Schematics Acquired . | . . . Parts Built . | . . . Authchips . | . . . Time . | . . . Total Part Build Rating . | . . . Part Studies Acquired . | . . . Parts Repaired . | . . . Time . | . . . Parts Recycled . | . . . Recycled Matter . | . . . Retrieved Matter . | . . . Retrieved Components . | . . . Parts Scanalyzed . | . . . Part Schematics Acquired . | . . . Parts Damaged . | . . . Bothacking | -11 -10 -10 ------------ Run | Yrd Mat Sub Used RIF Installer . | . . . Robots Hacked . | . . . Non-combat . | . . . Combat . | . . . Robot Hacks Applied . | . . . Relay Couplers Released . | . . . Fabnet Peak Effective % . | . . . Robots Rewired . | . . . Allies Hacked . | . . . Hacks Repelled . | . . . Allies | -11 -10 -10 -------- Run | Yrd Mat Sub Total Allies . | . . . Largest Group . | . . . Highest-Rated Group . | . . . Highest-Rated Ally . | . . . Total Orders . | . . . Ally Attacks . | . . . Total Damage . | . . . Kills . | . . . Allies Corrupted . | . . . Allies Melted . | . . . Intel | -11 -10 -10 ------- Run | Yrd Mat Sub Active Infowar (turns) 300 | 18 172 110 Seismic 300 | 18 172 110 Robot Analysis Total . | . . . Derelict Logs Recovered . | . . . Drone Launches . | . . . Drone Recoveries . | . . . Exploration | -11 -10 -10 ------------- Run | Yrd Mat Sub Turns Passed 630 | 99 172 359 Spaces Moved 456 | 49 94 313 Core 97 | 1 . 96 Treads 188 | 48 94 46 Legs . | . . . Wheels 171 | . . 171 Hover . | . . . Flight . | . . . Fastest Speed 50 | 50 160 80 Average Speed 118 | 157 160 100 Slowest Speed 200 | 160 160 200 Overloaded Moves . | . . . Propulsion Burnouts . | . . . Robots Hopped . | . . . Potential Cave-ins . | . . . Cave-ins Triggered . | . . . Exploration Rate (%) 18 | 3 20 31 Regions Visited 2 Branch Regions 1 Pre-discovered Areas . | . . . Known Exits Taken . | . . . Unknown Exits Taken 2 | 1 1 . Scrap Searched . | . . . Spaces Dug . | . . . Terrain Destroyed . | . . . Melee . | . . . Projectile . | . . . AOE . | . . . Terrain Rammed . | . . . Walls Destroyed . | . . . Machines Disabled . | . . . Actions | -11 -10 -10 --------- Run | Yrd Mat Sub Total 526 | 61 116 349 Wait 29 | . 19 10 Move 454 | 48 93 313 Hop . | . . . Pick Up 8 | 3 4 1 Fast Attach 7 | 7 . . Attach 4 | . . 4 Detach 1 | . . 1 Swap . | . . . Drop 1 | . . 1 Fire 11 | 3 . 8 Melee . | . . . Ram 11 | . . 11 Kick . | . . . Crush . | . . . Escape Stasis . | . . . Rewire . | . . . Trap . | . . . Miscellaneous . | . . . Route ------- -11/Scrapyard -10/Materials -10/Subcaves History --------- Turn | Location | Event 56 | -11/Scrapyard | Discovered new exit (range 15) 100 | -11/Scrapyard | Entered Materials 101 | -10/Materials | Met a group of wandering Federalists 264 | -10/Materials | Discovered new exit (range 8) 272 | -10/Materials | Entered Subcaves 273 | -10/Subcaves | Continued accompanying wandering Federalists (6) 273 | -10/Subcaves | Approached by a straggling Scientist 312 | -10/Subcaves | Build established: Mutant 321 | -10/Subcaves | Ambushed by Subdwellers from Twisted Machinery 352 | -10/Subcaves | Lost 6 allies 438 | -10/Subcaves | Lost 6 parts (1p3n2w) 534 | -10/Subcaves | Core integrity fell below 50% 628 | -10/Subcaves | Core integrity fell below 20% 631 | -10/Subcaves | Destroyed by 9Y-LJ2(R) with Subdweller Laser Last Messages --------------- 00383_ Slammed into ZN-TTL(R). 00383_ ZN-TTL(R) knocked back. 00384_ Slammed into ZN-TTL(R). 00385_ B4-XAP(O) collects matter. 00386_ Slammed into ZN-TTL(R). 00386_ ZN-TTL(R) knocked back. 00387_ Slammed into ZN-TTL(R). 00388_ B4-XAP(O) collects matter. 00389_ Slammed into ZN-TTL(R). 00392_ B4-XAP(O) collects matter. 00394_ Lgt. Treads destroyed. 00396_ B4-XAP(O) collects matter. 00404_ Subatomizers dissect the Heat Sink. 00404_ Com. Wheel destroyed. 00405_ B4-XAP(O) puts together Mak. Flight Unit. 00407_ Ion Engine destroyed. 00431_ Acquired 6 matter. 00532_ Lgt. Ion Engine destroyed. 00533_ Wheel destroyed. 00627_ Slammed into 35-L0K(R). Map ----- +----------------------------------------------------+ | | | | | | | | | | | | | | | | | | | | | | | ?????????????????????????????????????????????????? | | ?????????????????????????????????????????????????? | | ?????????????????????????????????????????????????? | | ????????????????????##???????????????????????????? | | ?????????????????# " #???????????????????????????? | | ?????????????????"" ##??????????????????????????? | | ????????????????#" " "#??????????????????????????? | | ????????????????#"" +??????????????????????????? | | ????????????????#" " ???????????????????????????? | | ????????????????#""$ #???????????????????????????? | | ????????????????# "##??????????????????????????? | | ????????????????# <<""######?????????????????????? | | ?????????????????#<< #R #?????????????????????? | | ?????????????????# R ##?????????????????????? | | ?????????????????## ##R@<#?????####????????????? | | ??????????????????#####< <###?? #????????????? | | ????????????????# ### < ## #?????????????? | | ???????????????## #??????????????? | | ??????????????## #### ## ????????? | | ??????????????# ### ????????? | | ?????????????## ????????? | | ?????????????# ????????? | | ?????????????## ## ##?????????? | | ??????????????### ##?# #########??????????? | | ????????????????# #???###??????????????????? | | ??????????????### #????????????????????????? | | ??????????????# ####?????????????????????? | | ??????????????### #?????????????????????? | | ????????????????## ## ##????????????????????? | | ??????????##?????######## #????????????????????? | | ??????????# ##????????## ##??#### ????????????? | | ??????????# ##???????# # ??????????? | | ?????????## ##?????## ??????????? | | ?????????# ####### #### #??????????? | | ?????????# ## # ##?????????????????? | | ?????????# ## ## ######??????????????????? | | ?????????### ####???????????????????????? | | ???????????## #?????????????????????????? | | ????????????# " #?????????????????????????? | +----------------------------------------------------+ Best States ------------- Heat Dissipation 25 Energy Generation 10 Energy Capacity 250 Matter Stores 300 Matter Capacity 300 Sight Range 16 Terrain Scan Density 10 Weapon Shielding 33 Evasion (%) 44 Recoil Reduction 2 Item Schematics ----------------- None Robot Schematics ------------------ None Fabricated ------------ Nothing Repaired ---------- Nothing Studied --------- None Alien Tech Used ----------------- None Achievements -------------- None Challenges ------------ None Game ------ Seed HeatSuperquantumCoupler Manual? 0 Play Time 00:09:42 Cumulative 42.2 hours Start 2026.02.26 @ 00:21:49 End 2026.02.26 @ 00:27:45 Sessions 1 Manual Loads 0 Difficulty Rogue Special Mode None Game No. 101 Rogue 101 Adventurer 0 Explorer 0 Win Type - Total 0 Types 0/0/0/0/0/0/0/0/0/0 Lore% 29 Gallery% 36 Achievement% 27 Wizard Run 0 Options --------- Layout 2 ASCII 0 Keyboard 1 Movement Arrows Keybinds 0 Fullscreen 1 Font 24/Smallcaps Map View 50x44 Zoom Use 0% Tactical HUD 1 Map Filters NONE Filters NONE Steam 1 RUN: caa0e867-fb6b-44d4-98aa-ccbdbb7ffe31